fUSD/lending_fUSD_20260514
["ID","MTS","AMOUNT","RATE_DAILY","PERIOD"]
[422230099,1778737833000,-205.538248,0.00014464,2]
[422230098,1778737833000,-168.0,0.00014402,2]
[422230104,1778737833000,-9210.6,0.00014504,2]
[422230102,1778737833000,-500.0,0.00014499,2]
[422230122,1778737841000,-1280.90628433,0.000146,2]
[422230116,1778737841000,-492.41777302,0.000146,5]
[422230118,1778737841000,-341.50517263,0.000146,5]
[422230120,1778737841000,-638.46771058,0.000146,5]
[422230121,1778737841000,-3147.04703338,0.000146,5]
[422230123,1778737841000,-152.0,0.00014614,11]
[422230119,1778737841000,-3216.5170958,0.000146,5]
[422230126,1778737841000,-534.0,0.0001464,2]
[422230124,1778737841000,-43588.55367676,0.0001464,2]
[422230128,1778737841000,-29272.96318642,0.0001464,2]
[422230129,1778737841000,-500.0,0.00014658,2]
[422230127,1778737841000,-909.41682512,0.0001464,2]
[422230125,1778737841000,-1198.04289802,0.0001464,2]
[422230130,1778737841000,-500.0,0.0001466,2]
[422230151,1778737842000,-341.0,0.00014791,2]
[422230155,1778737842000,-500.21402607,0.00014799,2]
[422230185,1778737842000,-500.0,0.00014799,2]
[422230156,1778737842000,-500.0,0.00014799,2]
[422230162,1778737842000,-500.0,0.00014799,2]
[422230159,1778737842000,-500.0,0.00014799,2]
[422230160,1778737842000,-500.0,0.00014799,2]
[422230161,1778737842000,-500.0,0.00014799,2]
[422230164,1778737842000,-500.0,0.00014799,2]
[422230167,1778737842000,-423.59430574,0.00014799,2]
[422230165,1778737842000,-576.63468002,0.00014799,2]
[422230166,1778737842000,-500.0,0.00014799,2]
[422230169,1778737842000,-522.53874522,0.00014799,2]
[422230168,1778737842000,-500.0,0.00014799,2]
[422230170,1778737842000,-500.0,0.00014799,2]
[422230179,1778737842000,-500.0,0.00014799,2]
[422230171,1778737842000,-500.0,0.00014799,2]
[422230181,1778737842000,-500.0,0.00014799,2]
[422230152,1778737842000,-6994.15046331,0.00014791,2]
[422230163,1778737842000,-500.0,0.00014799,2]
[422230153,1778737842000,-341.0,0.00014797,2]
[422230142,1778737842000,-350.0,0.00014745,2]
[422230149,1778737842000,-4349.18065778,0.00014786,2]
[422230183,1778737842000,-500.0,0.00014799,2]
[422230131,1778737842000,-167.15336019,0.000147,2]
[422230132,1778737842000,-3700.0,0.000147,5]
[422230144,1778737842000,-4349.18065778,0.00014757,2]
[422230135,1778737842000,-5000.0,0.00014734,2]
[422230134,1778737842000,-4349.18065778,0.00014729,2]
[422230133,1778737842000,-4349.18065779,0.000147,2]
[422230136,1778737842000,-150.0,0.00014737,2]
[422230140,1778737842000,-6994.15046333,0.00014739,2]
[422230137,1778737842000,-341.0,0.00014737,2]
[422230141,1778737842000,-1000.0,0.0001474,2]
[422230139,1778737842000,-155.44571025,0.00014739,2]
[422230138,1778737842000,-350.82990773,0.00014739,2]
[422230143,1778737842000,-6994.15046331,0.00014756,2]
[422230145,1778737842000,-343.0,0.00014762,2]
[422230157,1778737842000,-500.0,0.00014799,2]
[422230158,1778737842000,-500.0,0.00014799,2]
[422230147,1778737842000,-6994.15046331,0.00014774,2]
[422230146,1778737842000,-341.0,0.0001477,2]
[422230148,1778737842000,-379.0,0.00014781,2]
[422230150,1778737842000,-341.0,0.00014786,2]
[422230154,1778737842000,-500.0,0.00014799,2]
[422230172,1778737842000,-500.0,0.00014799,2]
[422230221,1778737842000,-500.0,0.00014799,2]
[422230188,1778737842000,-500.0,0.00014799,2]
[422230229,1778737842000,-500.0,0.00014799,2]
[422230237,1778737842000,-3700.0,0.000148,5]
[422230233,1778737842000,-4280.11482937,0.000148,2]
[422230239,1778737842000,-331.0,0.00014802,2]
[422230241,1778737842000,-314.0,0.00014807,2]
[422230243,1778737842000,-341.0,0.00014813,2]
[422230246,1778737842000,-4349.18065778,0.00014814,2]
[422230247,1778737842000,-155.44571025,0.0001482,2]
[422230249,1778737842000,-345.35181253,0.00014824,2]
[422230231,1778737842000,-220.67775096,0.000148,2]
[422230260,1778737842000,-586.69929855,0.00014833,2]
[422230253,1778737842000,-541.72900382,0.00014833,2]
[422230252,1778737842000,-331.0,0.0001483,2]
[422230262,1778737842000,-150.0,0.00014833,2]
[422230258,1778737842000,-500.0,0.00014833,2]
[422230265,1778737842000,-500.0,0.00014833,2]
[422230264,1778737842000,-500.0,0.00014833,2]
[422230187,1778737842000,-500.0,0.00014799,2]
[422230269,1778737842000,-765499.83079149,0.00014834,2]
[422230272,1778737842000,-805.6,0.00014834,2]
[422230256,1778737842000,-500.0,0.00014833,2]
[422230227,1778737842000,-500.0,0.00014799,2]
[422230267,1778737842000,-500.0,0.00014833,2]
[422230225,1778737842000,-500.0,0.00014799,2]
[422230235,1778737842000,-577.21677654,0.000148,2]
[422230189,1778737842000,-500.0,0.00014799,2]
[422230177,1778737842000,-500.0,0.00014799,2]
[422230175,1778737842000,-525.0,0.00014799,2]
[422230194,1778737842000,-500.0,0.00014799,2]
[422230191,1778737842000,-500.0,0.00014799,2]
[422230196,1778737842000,-500.0,0.00014799,2]
[422230200,1778737842000,-500.0,0.00014799,2]
[422230198,1778737842000,-500.0,0.00014799,2]
[422230204,1778737842000,-500.0,0.00014799,2]
[422230190,1778737842000,-500.0,0.00014799,2]
[422230202,1778737842000,-500.0,0.00014799,2]
[422230192,1778737842000,-500.0,0.00014799,2]
[422230219,1778737842000,-500.0,0.00014799,2]
[422230215,1778737842000,-500.0,0.00014799,2]
[422230214,1778737842000,-500.0,0.00014799,2]
[422230218,1778737842000,-500.0,0.00014799,2]
[422230208,1778737842000,-500.0,0.00014799,2]
[422230211,1778737842000,-500.0,0.00014799,2]
[422230209,1778737842000,-500.0,0.00014799,2]
[422230205,1778737842000,-500.0,0.00014799,2]
[422230223,1778737842000,-500.0,0.00014799,2]
[422230388,1778737843000,-1000.0,0.00014867,2]
[422230404,1778737843000,-331.0,0.00014893,2]
[422230390,1778737843000,-152.0,0.00014869,12]
[422230394,1778737843000,-200.0,0.0001488,2]
[422230392,1778737843000,-1000.0,0.0001488,2]
[422230396,1778737843000,-341.0,0.00014884,2]
[422230401,1778737843000,-341.0,0.00014889,2]
[422230398,1778737843000,-341.0,0.00014887,2]
[422230419,1778737843000,-6643.51158342,0.000149,3]
[422230413,1778737843000,-2257.67,0.000149,2]
[422230417,1778737843000,-192.02289105,0.000149,2]
[422230415,1778737843000,-1500000.0,0.000149,2]
[422230429,1778737843000,-341.0,0.00014911,2]
[422230423,1778737843000,-2536.0,0.000149,5]
[422230421,1778737843000,-192.02289105,0.000149,2]
[422230435,1778737843000,-341.0,0.00014951,2]
[422230385,1778737843000,-419.42017,0.0001486,2]
[422230407,1778737843000,-300.0,0.00014899,2]
[422230386,1778737843000,-331.0,0.00014863,2]
[422230352,1778737843000,-500.0,0.00014839,2]
[422230381,1778737843000,-341.0,0.0001486,2]
[422230344,1778737843000,-500.0,0.00014799,2]
[422230348,1778737843000,-341.0,0.00014839,2]
[422230350,1778737843000,-500.0,0.00014839,2]
[422230347,1778737843000,-618289.93950851,0.00014834,2]
[422230341,1778737843000,-500.0,0.00014799,2]
[422230371,1778737843000,-164.098,0.0001485,2]
[422230369,1778737843000,-368.88443664,0.0001485,2]
[422230360,1778737843000,-173.50408755,0.00014839,2]
[422230382,1778737843000,-1645.819,0.0001486,2]
[422230363,1778737843000,-500.0,0.00014839,2]
[422230367,1778737843000,-341.0,0.00014842,2]
[422230354,1778737843000,-209.31041312,0.00014839,2]
[422230356,1778737843000,-294.34964649,0.00014839,2]
[422230375,1778737843000,-419.42018,0.0001485,2]
[422230373,1778737843000,-419.42017,0.0001485,2]
[422230365,1778737843000,-500.0,0.00014839,2]
[422230379,1778737843000,-343.0,0.00014859,2]
[422230377,1778737843000,-163.0,0.00014856,2]
[422230358,1778737843000,-527.32014134,0.00014839,2]
[422230427,1778737843000,-155.44571025,0.000149,2]
[422230437,1778737843000,-10000.0,0.00014953,2]
[422230431,1778737843000,-343.0,0.00014919,2]
[422230500,1778737843000,-151.0,0.00014995,2]
[422230502,1778737843000,-151.0,0.00014995,2]
[422230481,1778737843000,-300.0,0.00014994,2]
[422230503,1778737843000,-151.0,0.00014995,2]
[422230488,1778737843000,-3338.2906786,0.00014995,2]
[422230505,1778737843000,-8364.2999211,0.00014995,2]
[422230496,1778737843000,-151.0,0.00014995,2]
[422230485,1778737843000,-769597.7667289,0.00014995,2]
[422230490,1778737843000,-902513.1018955,0.00014995,2]
[422230483,1778737843000,-1960.0,0.00014995,5]
[422230513,1778737843000,-184.918819,0.00014995,2]
[422230509,1778737843000,-184.918819,0.00014995,2]
[422230519,1778737843000,-1167.106651,0.00014995,2]
[422230511,1778737843000,-184.918819,0.00014995,2]
[422230515,1778737843000,-184.918819,0.00014995,2]
[422230508,1778737843000,-430034.8059175,0.00014995,2]
[422230517,1778737843000,-1167.106651,0.00014995,2]
[422230411,1778737843000,-300.0,0.00014899,2]
[422230491,1778737843000,-151.0,0.00014995,2]
[422230494,1778737843000,-151.0,0.00014995,2]
[422230498,1778737843000,-197.671785,0.00014995,2]
[422230467,1778737843000,-278.33797665,0.00014986,2]
[422230465,1778737843000,-345.35181253,0.00014985,2]
[422230433,1778737843000,-360.0,0.00014926,2]
[422230425,1778737843000,-3700.0,0.000149,5]
[422230441,1778737843000,-15000.0,0.00014965,2]
[422230439,1778737843000,-169.0,0.00014959,2]
[422230450,1778737843000,-341.0,0.00014968,2]
[422230451,1778737843000,-252.0,0.00014971,2]
[422230455,1778737843000,-343.0,0.00014976,2]
[422230469,1778737843000,-279.88135709,0.00014986,2]
[422230454,1778737843000,-6111.0,0.00014976,2]
[422230479,1778737843000,-343.0,0.00014992,2]
[422230462,1778737843000,-1539.0,0.00014983,2]
[422230457,1778737843000,-1447.27242209,0.00014976,2]
[422230463,1778737843000,-231.0,0.00014984,2]
[422230473,1778737843000,-227.69260748,0.00014986,2]
[422230475,1778737843000,-343.0,0.00014989,2]
[422230459,1778737843000,-343.0,0.00014982,2]
[422230478,1778737843000,-345.35181253,0.0001499,2]
[422230471,1778737843000,-288.37111373,0.00014986,2]
[422230535,1778737844000,-2377.493607,0.00014995,2]
[422230549,1778737844000,-908.018583,0.00014995,2]
[422230537,1778737844000,-2377.493607,0.00014995,2]
[422230551,1778737844000,-908.018583,0.00014995,2]
[422230558,1778737844000,-151.0,0.00014995,2]
[422230554,1778737844000,-151.0,0.00014995,2]
[422230556,1778737844000,-151.0,0.00014995,2]
[422230533,1778737844000,-2377.493607,0.00014995,2]
[422230552,1778737844000,-908.018583,0.00014995,2]
[422230547,1778737844000,-908.018583,0.00014995,2]
[422230521,1778737844000,-1167.106651,0.00014995,2]
[422230543,1778737844000,-151.0,0.00014995,2]
[422230541,1778737844000,-151.0,0.00014995,2]
[422230539,1778737844000,-2377.493607,0.00014995,2]
[422230531,1778737844000,-357.156728,0.00014995,2]
[422230529,1778737844000,-357.156728,0.00014995,2]
[422230527,1778737844000,-357.156728,0.00014995,2]
[422230523,1778737844000,-1167.106651,0.00014995,2]
[422230525,1778737844000,-357.156728,0.00014995,2]
[422230560,1778737844000,-341.0,0.00014996,2]
[422230545,1778737844000,-151.0,0.00014995,2]
[422230562,1778737844000,-213.65549756,0.00014996,2]
[422230625,1778737844000,-811.17487616,0.00015,2]
[422230564,1778737844000,-182.83109369,0.00014996,2]
[422230686,1778737844000,-224.71750789,0.00014799,2]
[422230647,1778737844000,-275.28249211,0.00014799,2]
[422230645,1778737844000,-500.0,0.00014799,2]
[422230632,1778737844000,-500.0,0.00014799,2]
[422230633,1778737844000,-302113.58330491,0.00015,2]
[422230636,1778737844000,-21221.63675356,0.00015,2]
[422230566,1778737844000,-730.59305039,0.00014996,2]
[422230590,1778737844000,-930.0,0.00014999,2]
[422230592,1778737844000,-3630.0,0.00014999,2]
[422230588,1778737844000,-150.0,0.00014999,2]
[422230627,1778737844000,-351.22845105,0.00015,2]
[422230582,1778737844000,-926.0,0.00014999,2]
[422230586,1778737844000,-1270.0,0.00014999,2]
[422230568,1778737844000,-151.0,0.00014997,2]
[422230574,1778737844000,-187.16915046,0.00014999,2]
[422230570,1778737844000,-343.0,0.00014999,2]
[422230578,1778737844000,-1354.0,0.00014999,2]
[422230576,1778737844000,-625.0,0.00014999,2]
[422230580,1778737844000,-3542.0,0.00014999,2]
[422230584,1778737844000,-150.0,0.00014999,2]
[422230594,1778737844000,-2258411.60426345,0.00015,2]
[422230572,1778737844000,-300.0,0.00014999,2]
[422230704,1778737845000,-500.0,0.00014799,2]
[422230691,1778737845000,-500.0,0.00014799,2]
[422230697,1778737845000,-500.0,0.00014799,2]
[422230699,1778737845000,-500.0,0.00014799,2]
[422230694,1778737845000,-500.0,0.00014799,2]
[422230689,1778737845000,-500.0,0.00014799,2]
[422230695,1778737845000,-500.0,0.00014799,2]
[422230688,1778737845000,-500.0,0.00014799,2]
[422230701,1778737845000,-500.0,0.00014799,2]
[422230706,1778737845000,-500.0,0.00014799,2]
[422230708,1778737845000,-500.0,0.00014799,2]
[422230715,1778737845000,-500.0,0.00014799,2]
[422230725,1778737845000,-417.0,0.00014999,2]
[422230727,1778737845000,-799736.55644241,0.00015,2]
[422230723,1778737845000,-4349.18065778,0.00014843,2]
[422230719,1778737845000,-500.0,0.00014799,2]
[422230734,1778737845000,-6.37334961,0.00015,2]
[422230721,1778737845000,-500.0,0.00014799,2]
[422230717,1778737845000,-500.0,0.00014799,2]
[422230713,1778737845000,-500.0,0.00014799,2]
[422230709,1778737845000,-500.0,0.00014799,2]
[422230711,1778737845000,-547.1107904,0.00014799,2]
[422230953,1778737846000,-3043.80239375,0.00014808,2]
[422230951,1778737846000,-167.15336019,0.000147,2]
[422230981,1778737847000,-3367.42894201,0.00015,2]
[422230979,1778737847000,-2980.34806956,0.00014808,2]
[422230972,1778737847000,-970.0,0.00014808,2]
[422232907,1778738238000,170.41,6.997e-05,2]
[422232916,1778738941000,-300.0,0.00010699,2]
[422232917,1778738941000,-9700.0,0.000107,2]
[422232919,1778738943000,-9850.0,0.000107,2]
[422232918,1778738943000,-150.0,0.00010699,2]
[422232921,1778738944000,-10000.0,0.000107,2]
[422232920,1778738944000,-10000.0,0.000107,2]
[422232923,1778738945000,-10000.0,0.000107,2]
[422232922,1778738945000,-10000.0,0.000107,2]
[422232925,1778738946000,-10000.0,0.000107,2]
[422232924,1778738946000,-10000.0,0.000107,2]
[422232926,1778738947000,-3774.50746466,0.000107,2]
[422232927,1778738954000,-50000.0,0.000107,2]
[422232928,1778738958000,-10000.0,0.000107,2]
[422232929,1778738960000,-10000.0,0.000107,2]
[422232930,1778738961000,-10000.0,0.000107,2]
[422232932,1778738963000,-50000.0,0.000107,2]
[422232931,1778738963000,-10000.0,0.000107,2]
[422232933,1778738972000,-50000.0,0.000107,2]
[422232934,1778738977000,-4210.0,0.000107,2]
[422232935,1778738982000,-40676.80138182,0.000107,2]
[422232950,1778739031000,-10647.21561742,0.00011537,2]
[422232947,1778739031000,-6.16079838,0.00011536,2]
[422232948,1778739031000,-293.83920162,0.00011536,2]
[422232949,1778739031000,-371.89075681,0.00011537,2]
[422232946,1778739031000,-636.1374225,0.00011536,2]
[422232945,1778739031000,-563.8625775,0.00011536,2]
[422233007,1778739032000,-4033.8945625,0.00013502,2]
[422233005,1778739032000,-150.0,0.00013488,2]
[422233004,1778739032000,-150.0,0.00013488,2]
[422233003,1778739032000,-150.0,0.00013488,2]
[422233002,1778739032000,-150.0,0.00013488,2]
[422232995,1778739032000,-11019.10637419,0.00013405,2]
[422233008,1778739032000,-2000.0,0.00013538,2]
[422233000,1778739032000,-150.0,0.00013488,2]
[422232998,1778739032000,-170.29154141,0.00013488,2]
[422232997,1778739032000,-200.15,0.00013482,2]
[422233001,1778739032000,-238.93933533,0.00013488,2]
[422233006,1778739032000,-166.67,0.00013489,2]
[422233013,1778739032000,-772.5,0.00013699,2]
[422233009,1778739032000,-5746.07,0.00013581,2]
[422233011,1778739032000,-6891.78695385,0.00013663,2]
[422233014,1778739032000,-200.0,0.00013699,2]
[422233012,1778739032000,-154.49,0.00013699,2]
[422233025,1778739032000,-150.99,0.00013911,2]
[422233027,1778739032000,-2351.0,0.00013959,2]
[422233015,1778739032000,-170.2,0.00013713,2]
[422233017,1778739032000,-414.31,0.00013791,2]
[422233019,1778739032000,-200.15,0.00013819,2]
[422233016,1778739032000,-11019.10637419,0.00013779,2]
[422233021,1778739032000,-187.09,0.00013831,2]
[422233010,1778739032000,-467.23,0.00013581,2]
[422232999,1778739032000,-150.0,0.00013488,2]
[422232955,1778739032000,-250.0,0.00011769,2]
[422232996,1778739032000,-150.0,0.00013437,2]
[422232951,1778739032000,-4033.89456255,0.00011637,2]
[422232952,1778739032000,-255.0,0.00011737,2]
[422232953,1778739032000,-289.86543375,0.00011769,2]
[422232958,1778739032000,-202.02243263,0.0001177,2]
[422232954,1778739032000,-364.81562405,0.00011769,2]
[422232956,1778739032000,-250.0,0.00011769,2]
[422233023,1778739032000,-9999.99,0.00013911,2]
[422232960,1778739032000,-11019.10637419,0.00011911,2]
[422232962,1778739032000,-4033.8945625,0.00012103,2]
[422232966,1778739032000,-11158.68820343,0.000125,2]
[422232964,1778739032000,-11019.10637419,0.00012284,2]
[422232979,1778739032000,-299.99,0.00012893,2]
[422232980,1778739032000,-181.98,0.00012993,2]
[422232985,1778739032000,-4033.8945625,0.00013035,2]
[422232968,1778739032000,-4033.8945625,0.00012569,2]
[422232970,1778739032000,-11019.10637419,0.00012658,2]
[422232983,1778739032000,-11019.10637419,0.00013032,2]
[422232976,1778739032000,-433.0,0.00012871,2]
[422232974,1778739032000,-159.75,0.00012711,2]
[422232972,1778739032000,-1680.0,0.0001269,2]
[422232989,1778739032000,-152.0,0.00013185,3]
[422232991,1778739032000,-1000.0,0.00013215,2]
[422232992,1778739032000,-908.8,0.00013332,2]
[422232987,1778739032000,-166.39,0.0001306,2]
[422232994,1778739032000,-3946.9,0.0001339,2]
[422232993,1778739032000,-500.0,0.00013356,2]
[422233029,1778739032000,-4033.8945625,0.00013968,2]
[422233064,1778739032000,-7219.44876889,0.00014446,2]
[422233034,1778739032000,-2552.3,0.00014,2]
[422233077,1778739032000,-613.46949498,0.00014553,2]
[422233081,1778739032000,-7219.44876881,0.00014597,2]
[422233079,1778739032000,-6052.0,0.00014569,2]
[422233080,1778739032000,-500.0,0.00014582,2]
[422233082,1778739032000,-5700.0,0.000146,5]
[422233083,1778739032000,-4807.67544602,0.00014605,2]
[422233084,1778739032000,-11531.41508426,0.00014608,2]
[422233088,1778739032000,-155.44571025,0.00014646,2]
[422233085,1778739032000,-250.47467317,0.00014636,2]
[422233089,1778739032000,-6111.0,0.00014646,2]
[422233090,1778739032000,-7219.44876881,0.00014648,2]
[422233092,1778739032000,-393.97825776,0.00014688,2]
[422233087,1778739032000,-393.97825778,0.00014646,2]
[422233091,1778739032000,-5024.36972956,0.0001465,2]
[422233086,1778739032000,-5000.0,0.00014646,2]
[422233093,1778739032000,-7219.44876881,0.00014698,2]
[422233094,1778739032000,-359.77862508,0.000147,2]
[422233096,1778739032000,-1100.0,0.000147,5]
[422233095,1778739032000,-1500.0,0.000147,2]
[422233097,1778739032000,-350.0,0.00014724,3]
[422233098,1778739032000,-1815.20941236,0.00014726,2]
[422233099,1778739032000,-301.0,0.00014728,2]
[422233101,1778739032000,-393.97825776,0.00014731,2]
[422233100,1778739032000,-80045.7759,0.0001473,2]
[422233032,1778739032000,-250.0,0.00014,2]
[422233076,1778739032000,-7219.44876881,0.00014547,2]
[422233073,1778739032000,-34140.2067,0.00014546,2]
[422233074,1778739032000,-29272.96318642,0.00014546,2]
[422233075,1778739032000,-4907.19170556,0.00014546,2]
[422233036,1778739032000,-999.99,0.00014,2]
[422233040,1778739032000,-182.37606166,0.00014119,2]
[422233038,1778739032000,-7394.65,0.00014,2]
[422233042,1778739032000,-736.0,0.00014123,2]
[422233048,1778739032000,-200.15,0.00014156,2]
[422233046,1778739032000,-152.0,0.00014154,4]
[422233044,1778739032000,-11019.10637419,0.00014153,2]
[422233054,1778739032000,-168.994335,0.0001425,2]
[422233078,1778739032000,-3630.0,0.00014569,2]
[422233052,1778739032000,-150.0,0.00014237,2]
[422233057,1778739032000,-350.0,0.0001425,2]
[422233059,1778739032000,-3400.0,0.000144,5]
[422233060,1778739032000,-152.0,0.00014406,7]
[422233050,1778739032000,-1100.0,0.000142,5]
[422233061,1778739032000,-152.0,0.00014406,7]
[422233070,1778739032000,-909.99304427,0.00014524,2]
[422233058,1778739032000,-2200.0,0.000143,5]
[422233069,1778739032000,-4500.0,0.000145,5]
[422233071,1778739032000,-11019.10637419,0.00014526,2]
[422233068,1778739032000,-1987.07,0.00014497,2]
[422233072,1778739032000,-4589.117216,0.00014541,2]
[422233067,1778739032000,-1012.58,0.00014497,2]
[422233063,1778739032000,-4033.8945625,0.00014434,2]
[422233066,1778739032000,-7219.44876881,0.00014496,2]
[422233062,1778739032000,-230.67385903,0.00014415,2]
[422233065,1778739032000,-200.15,0.00014493,2]
[422233112,1778739033000,-500.0,0.00014745,2]
[422233102,1778739033000,-463.59016987,0.00014736,2]
[422233106,1778739033000,-500.0,0.00014745,2]
[422233103,1778739033000,-328.0,0.00014744,2]
[422233108,1778739033000,-500.0,0.00014745,2]
[422233109,1778739033000,-556.58291166,0.00014745,2]
[422233107,1778739033000,-644.34964649,0.00014745,2]
[422233105,1778739033000,-209.31041312,0.00014745,2]
[422233110,1778739033000,-500.0,0.00014745,2]
[422233113,1778739033000,-586.69929855,0.00014745,2]
[422233104,1778739033000,-500.0,0.00014745,2]
[422233114,1778739033000,-150.0,0.00014745,2]
[422233111,1778739033000,-500.0,0.00014745,2]
[422233123,1778739033000,-6989.94014646,0.00014746,2]
[422233124,1778739033000,-2182.37961044,0.00014746,2]
[422233122,1778739033000,-19818.63154234,0.00014746,2]
[422233120,1778739033000,-874.59964105,0.00014746,2]
[422233121,1778739033000,-305.20490765,0.00014746,2]
[422233115,1778739033000,-210888.81456529,0.00014746,2]
[422233118,1778739033000,-65563.95546468,0.00014746,2]
[422233117,1778739033000,-11972.23312919,0.00014746,2]
[422233116,1778739033000,-6668.04430688,0.00014746,2]
[422233119,1778739033000,-283.327772,0.00014746,2]
[422233131,1778739037000,-500.0,0.00014596,2]
[422233127,1778739037000,-500.21402607,0.00014596,2]
[422233128,1778739037000,-500.0,0.00014596,2]
[422233129,1778739037000,-500.0,0.00014596,2]
[422233130,1778739037000,-500.0,0.00014596,2]
[422233139,1778739037000,-500.0,0.00014596,2]
[422233132,1778739037000,-500.0,0.00014596,2]
[422233138,1778739037000,-500.0,0.00014596,2]
[422233134,1778739037000,-500.0,0.00014596,2]
[422233136,1778739037000,-500.0,0.00014596,2]
[422233133,1778739037000,-500.0,0.00014596,2]
[422233140,1778739037000,-500.0,0.00014596,2]
[422233135,1778739037000,-500.0,0.00014596,2]
[422233137,1778739037000,-500.0,0.00014596,2]
[422233208,1778739038000,-321.0,0.00014782,2]
[422233198,1778739038000,-393.97825776,0.00014773,2]
[422233194,1778739038000,-328.0,0.00014763,2]
[422233179,1778739038000,-239.85241672,0.000147,2]
[422233175,1778739038000,-500.0,0.00014596,2]
[422233181,1778739038000,-1174452.86891402,0.00014746,2]
[422233200,1778739038000,-155.44571025,0.00014773,2]
[422233190,1778739038000,-408.0,0.0001475,2]
[422233192,1778739038000,-328.0,0.00014757,2]
[422233188,1778739038000,-7219.44876881,0.00014749,2]
[422233177,1778739038000,-500.0,0.00014596,2]
[422233206,1778739038000,-150.0,0.00014781,2]
[422233232,1778739038000,-500.0,0.0001483,2]
[422233202,1778739038000,-321.0,0.00014774,2]
[422233211,1778739038000,-1106.10975102,0.00014791,2]
[422233215,1778739038000,-7219.44876881,0.00014799,2]
[422233213,1778739038000,-408.0,0.00014795,2]
[422233218,1778739038000,-1528.0,0.000148,2]
[422233220,1778739038000,-1100.0,0.000148,5]
[422233223,1778739038000,-15000.0,0.00014802,2]
[422233225,1778739038000,-341.0,0.00014802,2]
[422233228,1778739038000,-393.97825776,0.00014815,2]
[422233237,1778739038000,-500.0,0.0001483,2]
[422233240,1778739038000,-500.0,0.0001483,2]
[422233183,1778739038000,-547.0,0.00014746,2]
[422233230,1778739038000,-321.0,0.0001482,2]
[422233204,1778739038000,-328.0,0.00014776,2]
[422233185,1778739038000,-321.0,0.00014747,2]
[422233156,1778739038000,-500.0,0.00014596,2]
[422233171,1778739038000,-500.0,0.00014596,2]
[422233235,1778739038000,-500.0,0.0001483,2]
[422233142,1778739038000,-522.53874522,0.00014596,2]
[422233141,1778739038000,-576.63468002,0.00014596,2]
[422233144,1778739038000,-292.32947923,0.00014596,2]
[422233143,1778739038000,-500.0,0.00014596,2]
[422233145,1778739038000,-500.0,0.00014596,2]
[422233146,1778739038000,-500.0,0.00014596,2]
[422233147,1778739038000,-500.0,0.00014596,2]
[422233152,1778739038000,-500.0,0.00014596,2]
[422233148,1778739038000,-550.0,0.00014596,2]
[422233153,1778739038000,-500.0,0.00014596,2]
[422233150,1778739038000,-500.0,0.00014596,2]
[422233173,1778739038000,-500.0,0.00014596,2]
[422233151,1778739038000,-500.0,0.00014596,2]
[422233154,1778739038000,-500.0,0.00014596,2]
[422233155,1778739038000,-500.0,0.00014596,2]
[422233158,1778739038000,-500.0,0.00014596,2]
[422233157,1778739038000,-500.0,0.00014596,2]
[422233163,1778739038000,-500.0,0.00014596,2]
[422233162,1778739038000,-500.0,0.00014596,2]
[422233160,1778739038000,-500.0,0.00014596,2]
[422233164,1778739038000,-500.0,0.00014596,2]
[422233166,1778739038000,-500.0,0.00014596,2]
[422233165,1778739038000,-500.0,0.00014596,2]
[422233167,1778739038000,-500.0,0.00014596,2]